bitfinex/quotes_BTCUSD_20220101
["timestamp","ask_amount","ask_price","bid_price","bid_amount"]
[1641037028766,0.053361,46864.0,46862.0,0.00061206]
[1641037029369,0.01980064,46865.0,46862.0,0.00061206]
[1641037030670,0.0196408,46865.0,46862.0,0.00061206]
[1641037031221,0.29779053,46866.0,46862.0,0.00061206]
[1641037032224,0.1,46863.0,46862.0,0.00061206]
[1641037033921,0.109605,46863.0,46862.0,0.00061206]
[1641037039322,0.009605,46863.0,46862.0,0.00061206]
[1641037039524,0.07390645,46863.0,46862.0,0.00061206]
[1641037040122,0.36511216,46863.0,46862.0,0.00061206]
[1641037040723,1.19679325,46863.0,46862.0,0.00061206]
[1641037041122,0.36511216,46863.0,46862.0,0.00061206]
[1641037041722,1.14368297,46863.0,46862.0,0.00011]
[1641037041923,2.46133409,46863.0,46862.0,0.00011]
[1641037042126,2.48223921,46863.0,46862.0,0.00011]
[1641037042324,2.46246269,46863.0,46862.0,0.00011]
[1641037042575,2.62258869,46863.0,46862.0,0.00011]
[1641037042974,2.64368359,46863.0,46862.0,0.00011]
[1641037043173,2.62277847,46863.0,46862.0,0.00011]
[1641037043372,0.95,46862.0,46861.0,0.00178]
[1641037043574,1.16424961,46862.0,46861.0,0.00145]
[1641037043977,1.18285293,46862.0,46861.0,0.00145]
[1641037044273,2.39588527,46862.0,46861.0,0.00145]
[1641037044973,2.39588527,46862.0,46848.0,0.00044]
[1641037044974,0.00021799,46859.0,46857.0,0.00022]
[1641037045174,0.959605,46857.0,46856.0,0.00945]
[1641037045373,1.01083833,46857.0,46856.0,0.00824]
[1641037045575,0.009605,46853.0,46848.0,0.00044]
[1641037045776,0.06430145,46850.0,46848.0,0.00044]
[1641037045973,0.07390645,46850.0,46848.0,0.00044]
[1641037046422,1.28693879,46850.0,46848.0,0.00044]
[1641037046624,1.38693879,46850.0,46848.0,0.00044]
[1641037047026,1.40782478,46850.0,46848.0,0.00044]
[1641037048122,1.42915893,46850.0,46848.0,0.00044]
[1641037048324,1.40827294,46850.0,46848.0,0.00044]
[1641037048924,1.50827294,46850.0,46848.0,0.00044]
[1641037049124,0.889605,46849.0,46848.0,0.00044]
[1641037049325,0.989605,46849.0,46847.0,0.00031583]
[1641037049526,0.062997,46848.0,46847.0,0.00020583]
[1641037050978,1.27602934,46848.0,46847.0,0.00020583]
[1641037051175,0.062997,46848.0,46847.0,0.00020583]
[1641037051576,0.05,46847.0,46837.0,0.26485016]
[1641037051775,0.06430145,46844.0,46837.0,0.26485016]
[1641037051976,1.01398685,46849.0,46845.0,0.29589135]
[1641037051977,0.85720385,46849.0,46845.0,0.29589135]
[1641037052175,0.71650158,46847.0,46846.0,0.26078033]
[1641037052577,0.71650158,46847.0,46840.0,0.00121261]
[1641037052777,0.41031788,46849.0,46843.0,0.38772377]
[1641037052975,0.053379,46847.0,46843.0,0.6405103]
[1641037053176,0.07225113,46847.0,46843.0,0.6405103]
[1641037053828,0.06430145,46846.0,46843.0,0.38772377]
[1641037054325,0.053381,46845.0,46843.0,0.38772377]
[1641037054526,0.06430145,46846.0,46843.0,0.38772377]
[1641037055329,0.73770182,46849.0,46845.0,0.05842367]
[1641037055527,0.73770182,46849.0,46844.0,0.09706184]
[1641037055927,0.02120024,46849.0,46844.0,0.82418545]
[1641037056126,0.04036532,46849.0,46845.0,0.340531]
[1641037056329,0.01916508,46849.0,46845.0,0.340531]
[1641037056527,0.01916508,46849.0,46848.0,1.7092725]
[1641037056727,0.01916508,46849.0,46848.0,2.0498035]
[1641037056927,0.01916508,46849.0,46848.0,2.0448035]
[1641037057483,0.01887133,46855.0,46848.0,2.14609239]
[1641037057681,0.01887133,46855.0,46849.0,0.340531]
[1641037058173,0.01887133,46855.0,46853.0,0.37001844]
[1641037058375,0.01887133,46855.0,46854.0,0.340531]
[1641037059377,0.05062988,46859.0,46854.0,0.340531]
[1641037059974,0.06430145,46857.0,46854.0,0.340531]
[1641037061224,0.06430145,46857.0,46853.0,0.37001844]
[1641037061924,0.01564281,46859.0,46853.0,0.37001844]
[1641037061925,0.06187952,46856.0,46853.0,0.37001844]
[1641037063326,0.06187952,46856.0,46852.0,0.23779757]
[1641037063726,0.06187952,46853.0,46852.0,0.23779757]
[1641037065591,0.77906999,46858.0,46852.0,0.23779757]
[1641037065790,0.0185611,46857.0,46852.0,0.23779757]
[1641037065989,0.06187952,46856.0,46852.0,0.23779757]
[1641037067194,0.01914561,46858.0,46853.0,0.66732046]
[1641037067392,0.01914561,46858.0,46857.0,0.34174845]
[1641037067590,0.03927935,46860.0,46857.0,0.44174845]
[1641037067792,0.07013,46867.0,46859.0,0.340531]
[1641037068096,0.07013,46867.0,46864.0,0.37786841]
[1641037068292,0.94678117,46872.0,46867.0,0.053344]
[1641037068494,0.94678117,46875.0,46862.0,0.39656091]
[1641037068724,0.06187952,46869.0,46862.0,0.10789193]
[1641037069425,0.06187952,46869.0,46863.0,0.29875813]
[1641037069625,0.01416259,46875.0,46864.0,0.053347]
[1641037070226,0.06187952,46871.0,46864.0,0.053347]
[1641037070425,0.06187952,46871.0,46865.0,0.2860942]
[1641037070628,0.06187952,46871.0,46866.0,0.28729292]
[1641037072479,0.01416259,46875.0,46866.0,0.28729292]
[1641037072672,0.06187952,46871.0,46866.0,0.28729292]
[1641037073872,0.06187952,46870.0,46866.0,0.28729292]
[1641037075576,0.7164803,46870.0,46866.0,0.28729292]
[1641037075780,0.7164803,46870.0,46868.0,0.00126491]
[1641037075976,0.7164803,46870.0,46869.0,1.04269804]
[1641037076231,0.02661325,46875.0,46872.0,0.65445554]
[1641037076232,0.7164803,46874.0,46872.0,0.65445554]
[1641037076433,0.94678117,46883.0,46876.0,0.63]
[1641037076634,1.03892311,46891.0,46882.0,0.00121863]
[1641037076832,1.03892311,46891.0,46882.0,0.29325555]
[1641037077034,0.95754847,46889.0,46882.0,0.39325555]
[1641037077231,0.95754847,46889.0,46887.0,0.05966144]
[1641037077433,0.95754847,46889.0,46888.0,0.05842367]
[1641037077832,0.06187952,46892.0,46888.0,0.36300608]
[1641037078035,0.23926559,46895.0,46879.0,0.01871937]
[1641037078337,0.06187952,46883.0,46882.0,0.01895876]
[1641037078534,0.06187952,46883.0,46882.0,0.35948976]
[1641037079133,0.06187952,46883.0,46882.0,0.41791343]
[1641037079335,0.06187952,46883.0,46882.0,0.43934365]
[1641037079534,0.06115497,46883.0,46882.0,0.42038489]
[1641037079835,0.0604325,46883.0,46882.0,0.42038489]
[1641037080279,0.0604325,46883.0,46882.0,0.4405864]
[1641037080482,0.0604325,46883.0,46882.0,0.41915618]
[1641037080883,0.0690425,46883.0,46882.0,0.41915618]
[1641037081382,0.0690425,46883.0,46882.0,0.3800987]
[1641037081580,0.0690425,46883.0,46882.0,0.01936619]
[1641037082382,0.0690425,46883.0,46882.0,0.07778986]
[1641037082581,0.0690425,46883.0,46882.0,0.05842367]
[1641037084442,0.0690425,46883.0,46876.0,0.40589768]
[1641037084642,0.0690425,46883.0,46877.0,0.340531]
[1641037085043,0.0690425,46883.0,46878.0,0.25855837]
[1641037085241,0.0690425,46883.0,46879.0,0.340531]
[1641037086245,0.00861,46883.0,46879.0,0.340531]
[1641037086446,0.00861,46883.0,46879.0,0.3594491]
[1641037087346,0.00861,46883.0,46879.0,0.3793645]
[1641037087585,0.00861,46883.0,46879.0,0.3604464]
[1641037087988,0.0690425,46883.0,46879.0,0.3604464]
[1641037088386,0.0690425,46883.0,46879.0,0.38202789]
[1641037089190,0.00861,46883.0,46879.0,0.38202789]
[1641037089491,0.00861,46883.0,46882.0,0.73179069]
[1641037089692,0.00861,46883.0,46882.0,0.87135819]
[1641037089990,0.00861,46883.0,46882.0,0.92135819]
[1641037090391,0.00861,46883.0,46882.0,1.00064145]
[1641037090588,0.00861,46883.0,46882.0,1.00642117]
[1641037090790,0.00861,46883.0,46882.0,0.66064145]
[1641037091227,0.00915671,46888.0,46882.0,0.66657914]
[1641037091425,0.00915671,46888.0,46887.0,0.05842367]
[1641037091725,0.00915671,46888.0,46887.0,1.00335765]
[1641037092122,0.00915671,46888.0,46887.0,1.10335765]
[1641037092324,0.00279672,46893.0,46887.0,1.20461145]
[1641037092525,0.00279672,46893.0,46892.0,0.05968493]
[1641037092725,0.00279672,46893.0,46892.0,0.77908765]
[1641037092924,0.01195334,46893.0,46892.0,0.77908765]
[1641037093124,0.01195334,46893.0,46892.0,0.87908765]
[1641037093526,0.01195334,46893.0,46892.0,0.8979895]
[1641037094231,0.00279672,46893.0,46892.0,0.8979895]
[1641037094981,0.00279672,46893.0,46892.0,0.91627722]
[1641037095176,0.00279672,46893.0,46892.0,0.89737537]
[1641037095378,0.00279672,46893.0,46892.0,0.45881872]
[1641037095577,0.00279672,46893.0,46892.0,0.47864378]
[1641037095777,0.00279672,46893.0,46892.0,0.46035606]
[1641037096178,0.01140572,46893.0,46892.0,0.46035606]
[1641037096579,0.01140572,46893.0,46892.0,0.48036755]
[1641037096779,0.01140572,46893.0,46892.0,0.51896616]
[1641037097379,0.01140572,46893.0,46892.0,0.41896616]
[1641037097783,5.72e-06,46893.0,46892.0,1.23164718]
[1641037097982,0.002,46899.0,46893.0,0.51723632]
[1641037098183,0.002,46899.0,46898.0,0.00120566]
[1641037098383,0.002,46899.0,46898.0,0.39173666]
[1641037098581,0.0001,46899.0,46898.0,0.49173666]
[1641037098841,0.0001,46899.0,46898.0,0.75927456]
[1641037099242,0.0704325,46904.0,46898.0,0.75927456]
[1641037099444,0.0704325,46904.0,46898.0,0.78071898]
[1641037099844,0.0704325,46904.0,46903.0,0.00122916]
[1641037100243,0.0790425,46904.0,46903.0,0.00122916]
[1641037101845,0.0790425,46904.0,46899.0,0.16849303]
[1641037102047,0.0790425,46904.0,46899.0,0.32700705]
[1641037102246,0.0790425,46904.0,46899.0,0.06849303]
[1641037102483,0.0790425,46904.0,46899.0,0.16849303]
[1641037103078,0.0790425,46904.0,46899.0,0.48268905]
[1641037103377,0.0790425,46904.0,46900.0,0.340531]
[1641037103578,0.0790425,46904.0,46900.0,0.440531]
[1641037104378,0.0790425,46904.0,46901.0,0.26722187]
[1641037104678,0.0790425,46904.0,46902.0,0.340531]
[1641037105480,0.0790425,46904.0,46902.0,0.36205882]
[1641037106084,0.0790425,46904.0,46903.0,0.25958767]
[1641037106333,0.0790425,46904.0,46903.0,0.60011867]
[1641037106532,0.0790425,46904.0,46903.0,0.65342067]
[1641037106735,0.0790425,46904.0,46903.0,0.39504789]
[1641037107233,0.0790425,46904.0,46903.0,0.36504789]
[1641037107432,0.0790425,46904.0,46903.0,0.63595527]
[1641037107635,0.0790425,46904.0,46903.0,0.65420205]
[1641037107835,0.0790425,46904.0,46903.0,0.60090005]
[1641037108234,0.01861,46904.0,46903.0,0.60090005]
[1641037108433,0.0790425,46904.0,46903.0,0.60090005]
[1641037108634,0.0790425,46904.0,46903.0,0.34960742]
[1641037108833,0.0790425,46904.0,46903.0,0.33136064]
[1641037109633,0.0790425,46904.0,46903.0,0.3525994]
[1641037109834,0.0790425,46904.0,46903.0,0.33298465]
[1641037110277,0.0704325,46904.0,46903.0,0.33298465]
[1641037110675,0.0704325,46904.0,46903.0,0.35373652]
[1641037111379,0.0704325,46904.0,46903.0,0.31174589]
[1641037111677,0.01,46904.0,46903.0,0.3302015]
[1641037111882,0.0704325,46904.0,46903.0,0.3302015]
[1641037112081,0.01861,46904.0,46903.0,0.3302015]
[1641037112281,0.0790425,46904.0,46903.0,0.3302015]
[1641037112679,0.0790425,46904.0,46903.0,0.33249995]
[1641037113751,0.0790425,46904.0,46903.0,0.58773992]
[1641037114538,0.0790425,46904.0,46903.0,0.6060212]
[1641037114737,0.0790425,46904.0,46903.0,0.58683704]
[1641037115140,0.0790425,46904.0,46903.0,0.33002717]
[1641037115535,0.0790425,46904.0,46903.0,0.34825265]
[1641037115737,0.0790425,46904.0,46903.0,0.32997137]
[1641037115937,0.0790425,46904.0,46903.0,0.58798175]
[1641037116738,0.01861,46904.0,46903.0,0.60689097]
[1641037116938,0.01861,46904.0,46903.0,0.58866549]
[1641037117680,0.01861,46904.0,46903.0,0.60802987]
[1641037117881,0.01861,46904.0,46903.0,0.58912065]
[1641037118681,0.0790425,46904.0,46903.0,0.60995717]
[1641037118883,0.01861,46904.0,46903.0,0.59059279]
[1641037119079,0.0790425,46904.0,46903.0,0.59059279]
[1641037119284,0.0790425,46904.0,46903.0,0.02083652]
[1641037119482,0.1173705,46904.0,46903.0,0.02083652]
[1641037119784,0.1173705,46904.0,46903.0,0.02067159]
[1641037120784,0.1173705,46904.0,46894.0,0.00915633]
[1641037120983,0.38555972,46899.0,46894.0,0.00915633]
[1641037121232,0.5304325,46895.0,46894.0,0.00915633]
[1641037121431,0.5687605,46895.0,46894.0,0.00915633]
[1641037121630,0.0987605,46895.0,46894.0,0.00915633]
[1641037122232,0.33588699,46895.0,46892.0,0.01953324]
[1641037122434,0.053329,46893.0,46892.0,0.01953324]
[1641037123030,0.32709673,46889.0,46885.0,0.00915649]
[1641037123630,0.0604325,46886.0,46885.0,0.00915649]
[1641037124230,0.0604325,46886.0,46883.0,0.28479098]
[1641037124430,0.0604325,46886.0,46884.0,0.340932]
[1641037125082,0.00861,46890.0,46884.0,0.340932]
[1641037125083,0.0604325,46887.0,46884.0,0.340932]
[1641037125680,0.0604325,46887.0,46884.0,0.35961162]
[1641037125880,0.0604325,46887.0,46884.0,0.41293562]
[1641037126480,0.0604325,46887.0,46884.0,0.394256]
[1641037126681,0.0604325,46888.0,46884.0,0.41488368]
[1641037126883,0.00861,46890.0,46884.0,0.41488368]
[1641037127083,0.00861,46890.0,46886.0,0.053317]
[1641037127382,0.01722,46890.0,46889.0,0.340932]
[1641037127583,0.01722,46890.0,46889.0,0.440932]
[1641037127983,0.01722,46890.0,46889.0,0.49935567]
[1641037128748,0.01722,46890.0,46889.0,0.51796905]
[1641037129749,0.01722,46890.0,46889.0,0.53715457]
[1641037129951,0.01722,46890.0,46889.0,0.51854119]
[1641037130650,0.01722,46890.0,46889.0,0.53760832]
[1641037130850,0.01722,46890.0,46889.0,0.5184228]
[1641037131051,0.01722,46890.0,46889.0,1.24399271]
[1641037131453,0.00915658,46895.0,46894.0,0.00126782]
[1641037131654,0.00915658,46895.0,46894.0,1.26550382]
[1641037131852,0.00915658,46895.0,46894.0,1.32248693]
[1641037132053,0.00915658,46895.0,46894.0,0.59550382]
[1641037132255,0.0604325,46898.0,46897.0,0.00124905]
[1641037132490,0.0604325,46898.0,46897.0,0.34218105]
[1641037132680,0.0604325,46898.0,46897.0,0.50060472]
[1641037132882,0.0604325,46898.0,46897.0,0.60060472]
[1641037133881,0.0604325,46898.0,46897.0,0.61944862]
[1641037134481,0.0604325,46898.0,46897.0,1.74844862]
[1641037134681,0.0604325,46898.0,46897.0,1.76843054]
[1641037134882,0.0604325,46898.0,46897.0,1.74958664]
[1641037135083,0.0604325,46898.0,46897.0,0.62058664]
[1641037135684,0.0604325,46898.0,46897.0,0.64208821]
[1641037136728,0.0604325,46898.0,46897.0,0.66372377]
[1641037136931,0.0604325,46898.0,46897.0,0.62224028]
[1641037137728,0.0604325,46898.0,46897.0,0.64188912]
[1641037138733,0.0604325,46898.0,46897.0,0.66238897]
[1641037138931,0.0690425,46898.0,46897.0,0.62110457]
[1641037140180,0.0690425,46898.0,46897.0,0.52110457]
[1641037140382,0.0690425,46898.0,46897.0,0.54270586]
[1641037140581,0.0690425,46898.0,46897.0,0.52095696]
[1641037140783,0.0690425,46898.0,46897.0,0.54260953]
[1641037140983,0.0690425,46898.0,46897.0,0.52100824]
[1641037141981,0.0690425,46898.0,46897.0,0.54248443]
[1641037142181,0.0690425,46898.0,46897.0,0.52083186]
[1641037142781,0.0690425,46898.0,46897.0,0.54122685]
[1641037142981,0.0690425,46898.0,46897.0,0.52102967]
[1641037143384,0.0690425,46898.0,46897.0,0.62102967]
[1641037143829,0.0690425,46898.0,46897.0,0.64301539]
[1641037144029,0.0690425,46898.0,46897.0,0.91323906]
[1641037144932,0.0690425,46898.0,46897.0,2.03985198]
[1641037145331,0.00861,46898.0,46897.0,2.03985198]
[1641037145634,0.72553,46912.0,46911.0,0.32805801]
[1641037145635,0.72053,46912.0,46911.0,0.32805801]
[1641037145832,0.55976057,46914.0,46911.0,0.42805801]
[1641037146035,0.72216503,46913.0,46911.0,0.52805801]
[1641037146431,0.0690425,46915.0,46912.0,0.27541142]
[1641037146631,0.0690425,46915.0,46913.0,0.394218]
[1641037147032,0.0690425,46915.0,46913.0,0.494218]
[1641037147876,0.0690425,46915.0,46913.0,0.51387051]
[1641037148075,0.0690425,46915.0,46914.0,0.26131563]
[1641037148375,0.0690425,46915.0,46914.0,0.60224763]
[1641037148677,0.0690425,46915.0,46914.0,0.70224763]
[1641037149674,0.00861,46915.0,46914.0,0.70224763]
[1641037149874,0.00861,46915.0,46914.0,0.72359229]
[1641037150576,0.00861,46915.0,46914.0,0.78201596]
[1641037150978,0.00861,46915.0,46914.0,0.80042192]
[1641037151230,0.00861,46915.0,46914.0,0.77907726]
[1641037151830,0.00861,46915.0,46914.0,0.79785359]
[1641037152029,0.00861,46915.0,46914.0,1.90844763]
[1641037152429,0.00861,46915.0,46914.0,0.77944763]
[1641037152634,0.002,46919.0,46917.0,0.106551]
[1641037152832,0.002,46919.0,46918.0,0.70307814]
[1641037153031,0.002,46919.0,46918.0,0.80307814]
[1641037153532,0.002,46919.0,46918.0,1.13321047]
[1641037153734,0.002,46919.0,46918.0,1.0747868]
[1641037153933,0.002,46919.0,46918.0,1.09638881]
[1641037154832,0.002,46919.0,46918.0,1.17295085]
[1641037155077,0.002,46919.0,46918.0,1.15134884]
[1641037155078,0.0624325,46919.0,46918.0,1.15134884]
[1641037155278,0.002,46919.0,46918.0,1.05134884]
[1641037155578,0.002,46919.0,46918.0,1.05257188]
[1641037155775,0.0624325,46919.0,46918.0,1.05257188]
[1641037155975,0.0624325,46919.0,46918.0,1.05636819]
[1641037156577,0.002,46919.0,46918.0,1.05514515]
[1641037156779,0.002,46919.0,46918.0,1.25514515]
[1641037156977,0.002,46919.0,46918.0,1.27413315]
[1641037157178,0.002,46919.0,46918.0,1.25219847]
[1641037157579,0.0056629,46923.0,46919.0,1.250932]
[1641037157778,0.0056629,46923.0,46922.0,0.77372465]
[1641037157979,0.0056629,46923.0,46922.0,1.12265643]
[1641037158178,0.00915605,46924.0,46923.0,0.86]
[1641037158379,0.13039716,46929.0,46923.0,2.88718445]
[1641037158580,0.13039716,46929.0,46928.0,0.8989259]
[1641037158842,0.13039716,46929.0,46928.0,0.7597549]
[1641037159045,0.13039716,46929.0,46928.0,0.8597549]
[1641037159443,0.13039716,46929.0,46928.0,1.0597549]
[1641037159642,0.19082966,46929.0,46928.0,1.1130149]
[1641037159843,0.19082966,46929.0,46928.0,1.13263826]
[1641037160044,0.19082966,46929.0,46928.0,0.93263826]
[1641037160944,0.19082966,46929.0,46928.0,0.95290643]
[1641037161149,0.19082966,46929.0,46928.0,0.93328307]
[1641037161845,0.19082966,46929.0,46928.0,0.95252739]
[1641037162046,0.13039716,46929.0,46928.0,0.93225922]
[1641037162247,0.13039716,46929.0,46928.0,0.93758949]
[1641037162494,0.13039716,46929.0,46928.0,1.13225922]
[1641037162886,0.13039716,46929.0,46928.0,1.1536236]
[1641037163087,0.13039716,46929.0,46928.0,1.13437928]
[1641037163686,0.13039716,46929.0,46928.0,0.93437928]
[1641037163886,0.13039716,46929.0,46928.0,0.95262307]
[1641037164085,0.13039716,46929.0,46928.0,0.93125869]
[1641037164887,0.04993279,46929.0,46928.0,0.93125869]
[1641037165487,0.04993279,46929.0,46928.0,0.95016097]
[1641037165690,0.04993279,46929.0,46928.0,3.47207854]
[1641037166339,0.04993279,46929.0,46928.0,3.97207854]
[1641037166536,0.04993279,46929.0,46928.0,3.99103858]
[1641037167337,0.04993279,46929.0,46928.0,3.95317626]
[1641037167538,0.04993279,46929.0,46928.0,3.97268496]
[1641037167938,0.04993279,46929.0,46928.0,3.99250163]
[1641037168139,0.04993279,46929.0,46928.0,3.97299293]
[1641037168741,0.11036529,46929.0,46928.0,3.97299293]
[1641037168943,0.04993279,46929.0,46928.0,3.99289341]
[1641037169141,0.11036529,46929.0,46928.0,3.97307674]
[1641037169341,0.04993279,46929.0,46928.0,3.97307674]
[1641037169544,0.04920981,46929.0,46928.0,3.97307674]
[1641037169993,0.04920981,46929.0,46928.0,3.99407338]
[1641037170988,0.04920981,46929.0,46928.0,4.01314343]
[1641037171388,0.04920981,46929.0,46928.0,3.97224631]
[1641037171987,0.04920981,46929.0,46928.0,3.99280159]
[1641037172190,0.04920981,46929.0,46928.0,3.97373154]
[1641037172588,0.04920981,46929.0,46928.0,3.9792995]
[1641037172888,0.04920981,46929.0,46928.0,3.97373154]
[1641037173730,0.04920981,46929.0,46928.0,4.49554932]
[1641037173930,0.04920981,46929.0,46928.0,4.47499404]
[1641037174130,0.05781981,46929.0,46928.0,4.47251701]
[1641037175131,0.05781981,46929.0,46928.0,4.49223105]
[1641037175331,0.05781981,46929.0,46928.0,4.4728903]
[1641037175831,0.01,46934.0,46931.0,1.129]
[1641037176034,0.01,46934.0,46933.0,2.47277824]
[1641037176532,0.01226858,46939.0,46933.0,3.7839396]
[1641037176533,0.00711613,46939.0,46933.0,3.7839396]
[1641037176733,0.00711613,46939.0,46938.0,1.84742367]
[1641037176933,0.00711613,46939.0,46938.0,2.09110685]
[1641037177132,0.00711613,46939.0,46938.0,2.24435385]
[1641037177598,0.06754863,46939.0,46938.0,2.74435385]
[1641037177799,0.00711613,46939.0,46938.0,2.74435385]
[1641037178100,0.01572613,46939.0,46938.0,2.74435385]
[1641037178299,0.07615863,46939.0,46938.0,1.41535385]
[1641037178501,0.07615863,46939.0,46938.0,1.10249967]
[1641037178699,0.07615863,46939.0,46938.0,0.91238635]
[1641037178900,0.07615863,46939.0,46938.0,0.840829]
[1641037179100,0.07615863,46939.0,46938.0,0.85990699]
[1641037179301,0.07615863,46939.0,46938.0,0.51907799]
[1641037179501,0.07615863,46939.0,46938.0,0.01907799]
[1641037180104,0.07615863,46939.0,46938.0,0.04029162]
[1641037180703,0.07615863,46939.0,46938.0,0.3631969]
[1641037180904,0.07615863,46939.0,46938.0,0.04029162]
[1641037181240,0.07615863,46939.0,46937.0,0.053263]
[1641037181540,0.0710425,46939.0,46938.0,0.340829]
[1641037181940,0.0710425,46939.0,46938.0,0.39925267]
[1641037182341,0.0710425,46939.0,46938.0,0.54925267]
[1641037182544,0.0710425,46939.0,46938.0,0.39925267]
[1641037182743,0.0710425,46939.0,46938.0,0.340829]
[1641037183141,0.0710425,46939.0,46938.0,0.36118752]
[1641037184143,0.0710425,46939.0,46938.0,0.37976679]
[1641037184344,0.0710425,46939.0,46938.0,0.35940827]
[1641037184542,0.07111087,46939.0,46938.0,0.35940827]
[1641037185185,0.07111087,46939.0,46938.0,0.63872803]
[1641037185381,0.07111087,46939.0,46938.0,0.62014876]
[1641037185982,0.07111087,46939.0,46938.0,0.36243344]
[1641037186182,0.07111087,46939.0,46938.0,0.36237105]
[1641037187182,0.07111087,46939.0,46938.0,0.38298817]
[1641037187381,0.07111087,46939.0,46938.0,0.340829]
[1641037188186,0.07111087,46939.0,46938.0,0.36155518]
[1641037188384,0.06250087,46939.0,46938.0,0.36155518]
[1641037189037,0.06250087,46939.0,46938.0,0.38229226]
[1641037189238,0.06250087,46939.0,46938.0,0.36156608]
[1641037190040,0.06250087,46939.0,46938.0,0.3824998]
[1641037190242,0.06250087,46939.0,46938.0,0.36176272]
[1641037190643,0.07111087,46939.0,46938.0,0.36176272]
[1641037191244,0.07111087,46939.0,46938.0,0.38333956]
[1641037191445,0.07111087,46939.0,46938.0,0.36240584]
[1641037192044,0.07111087,46939.0,46938.0,0.3837909]
[1641037192243,0.07111087,46939.0,46938.0,0.36221406]
[1641037193089,0.07111087,46939.0,46938.0,0.38223157]
[1641037193287,0.07111087,46939.0,46938.0,0.36084651]
[1641037194086,0.07111087,46939.0,46938.0,0.37948484]
[1641037194288,0.07111087,46939.0,46938.0,0.35946733]
[1641037195188,0.07111087,46939.0,46938.0,0.37924434]
[1641037195591,0.07111087,46939.0,46938.0,0.340829]
[1641037195789,0.07111087,46939.0,46937.0,0.053263]
[1641037195989,0.07111087,46939.0,46938.0,0.340829]
[1641037196251,0.07111087,46939.0,46938.0,0.3605805]
[1641037197351,0.07111087,46939.0,46938.0,0.36056931]
[1641037198052,0.07111087,46939.0,46938.0,0.46056931]
[1641037198856,0.07111087,46939.0,46938.0,0.48197413]
[1641037199055,0.07111087,46939.0,46938.0,0.46223382]
[1641037199255,0.07111087,46939.0,46938.0,0.48261892]
[1641037200087,0.07111087,46939.0,46938.0,0.440829]
[1641037200287,0.07111087,46939.0,46938.0,0.46075385]
[1641037200891,0.06250087,46939.0,46938.0,0.46075385]
[1641037201286,0.06250087,46939.0,46938.0,0.47935574]
[1641037201491,0.06250087,46939.0,46938.0,0.56594489]
[1641037202088,0.07111087,46939.0,46938.0,0.56594489]
[1641037202286,0.07111087,46939.0,46938.0,0.58620837]
[1641037202486,0.07111087,46939.0,46938.0,0.56760648]
[1641037203289,0.07111087,46939.0,46938.0,0.58600161]
[1641037203494,0.07111087,46939.0,46938.0,0.56573813]
[1641037203936,0.07111087,46939.0,46938.0,0.85777285]
[1641037204338,0.00512435,46941.0,46940.0,1.15]
[1641037204538,0.00024502,46948.0,46942.0,0.2]
[1641037204737,0.00024502,46948.0,46947.0,1.38871831]
[1641037204937,0.00024502,46948.0,46947.0,1.77954731]
[1641037204938,0.06067752,46948.0,46947.0,1.77954731]
[1641037205137,0.06067752,46948.0,46947.0,1.92954731]
[1641037205337,0.06067752,46948.0,46947.0,0.59925267]
[1641037205537,0.06067752,46948.0,46947.0,0.540829]
[1641037205737,0.06067752,46948.0,46947.0,0.49925267]
[1641037205939,0.06067752,46948.0,46947.0,0.55249467]
[1641037206337,0.06067752,46948.0,46947.0,0.57296869]
[1641037206537,0.06067752,46948.0,46947.0,0.51972669]
[1641037207338,0.06067752,46948.0,46947.0,0.53775061]
[1641037207601,0.06067752,46948.0,46947.0,0.51727659]
[1641037208401,0.06067752,46948.0,46947.0,0.51763929]
[1641037209202,0.06067752,46948.0,46947.0,0.53602255]
[1641037209400,0.06067752,46948.0,46947.0,0.51763593]
[1641037210000,0.06928752,46948.0,46947.0,0.51763593]
[1641037210402,0.06928752,46948.0,46947.0,0.53594053]
[1641037210602,0.06928752,46948.0,46947.0,0.51755727]
[1641037211267,0.06928752,46948.0,46947.0,0.80272923]
[1641037211470,0.06928752,46948.0,46947.0,0.52074534]
[1641037211868,0.06928752,46948.0,46947.0,2.17244962]
[1641037212067,0.06928752,46948.0,46947.0,2.63377536]
[1641037212266,0.06928752,46948.0,46947.0,2.65224332]
[1641037212466,0.06928752,46948.0,46947.0,1.08458126]
[1641037213466,0.06928752,46948.0,46947.0,1.08587759]
[1641037214367,0.06928752,46948.0,46947.0,1.10732742]
[1641037214568,0.06928752,46948.0,46947.0,1.08756313]
[1641037215407,0.06928752,46948.0,46947.0,1.10878488]
[1641037215709,0.06928752,46948.0,46947.0,0.88733505]
[1641037215908,0.00885502,46948.0,46947.0,2.02295588]
[1641037216308,0.06928752,46948.0,46947.0,2.02295588]
[1641037216708,0.06918752,46948.0,46947.0,2.02295588]
[1641037216909,0.06918752,46948.0,46947.0,2.04481925]
[1641037217108,0.06918752,46948.0,46947.0,2.2235975]
[1641037217308,0.06918752,46948.0,46947.0,2.24232]
[1641037217609,0.06918752,46948.0,46947.0,2.22045663]
[1641037218409,0.06918752,46948.0,46947.0,2.24010328]
[1641037218610,0.00875502,46948.0,46947.0,2.21605071]
[1641037218838,0.01061,46949.0,46948.0,2.279]
[1641037219041,0.00910629,46953.0,46948.0,2.82825267]
[1641037219237,0.0001,46956.0,46948.0,2.82825267]
[1641037219238,0.0001,46956.0,46952.0,2.62106816]
[1641037219437,0.05203308,46958.0,46957.0,1.329]
[1641037219640,0.05203308,46958.0,46957.0,1.82825267]
[1641037220038,0.0001,46962.0,46957.0,1.82825267]
[1641037220241,0.0049,46972.0,46960.0,0.9]
[1641037220242,0.0001,46972.0,46960.0,0.9]
[1641037220440,0.0001,46972.0,46966.0,1.329]
[1641037220638,0.0001,46972.0,46967.0,0.59925267]
[1641037220839,0.0001,46972.0,46967.0,1.79055267]
[1641037221139,0.00209305,46972.0,46967.0,1.94055267]
[1641037221439,0.00881,46968.0,46967.0,2.39301302]
[1641037221642,0.00881,46968.0,46967.0,1.96002276]
[1641037222338,0.0001,46972.0,46967.0,1.96002276]
[1641037222339,0.0001,46972.0,46970.0,1.329]
[1641037222589,0.0001,46972.0,46970.0,1.769829]
[1641037222989,0.0001,46972.0,46970.0,2.59950934]
[1641037223287,0.0001,46972.0,46970.0,2.61781154]
[1641037223890,0.0001,46972.0,46970.0,1.89655487]
[1641037224289,0.0001,46972.0,46970.0,1.91670689]
[1641037224489,0.0001,46972.0,46970.0,1.89840469]
[1641037225289,0.0001,46972.0,46970.0,1.91796498]
[1641037225489,0.0001,46972.0,46970.0,1.89781296]
[1641037225693,0.0001,46972.0,46970.0,2.39781296]
[1641037226542,0.0001,46972.0,46970.0,2.39769121]
[1641037227343,0.0001,46972.0,46970.0,2.41645775]
[1641037227543,0.0001,46972.0,46970.0,2.39701921]
[1641037228444,0.0001,46972.0,46970.0,2.41605407]